[Event "Israel National League 2024"]
[Site "Israel"]
[Date "2024.01.12"]
[Round "2.26"]
[White "Bitensky, Igor"]
[Black "Zoler, Dan"]
[Result "0-1"]
[ECO "C77"]
[WhiteElo "2384"]
[BlackElo "2460"]
[Annotator "RC"]
[PlyCount "70"]
[EventDate "2024.01.07"]
[EventType "team-tourn"]
[EventCountry "ISR"]
[SourceTitle "playchess.com"]
[Source "ChessBase"]
[SourceQuality "1"]
[TimeControl "40/5400+30:1800+30"]

1. e4 {[%emt 0:00:03]} e5 {[%emt 0:00:27]} 2. Nf3 {[%emt 0:00:16]} Nc6 {[%emt 0:00:05]} 3. Bb5 {[%emt 0:00:12]} a6 {[%emt 0:00:06]} 4. Ba4 {[%emt 0:00:04]} Nf6 {[%emt 0:00:11]} 5. d3 {[%emt 0:00:07]} d6 {[%emt 0:00:33]} 6. a3 {[%emt 0:08:21]} g6 {[%emt 0:02:12]} 7. O-O {[%emt 0:01:21]} Bg7 {[%emt 0:00:17]} 8. Nc3 {[%emt 0:01:20]} O-O {[%emt 0:00:32]} 9. Bb3 {[%emt 0:09:26]} h6 {[%emt 0:11:32]} 10. h3 {[%emt 0:04:36]} Nd7 {[%emt 0:06:52]} 11. Nd5 {[%emt 0:02:57]} Nc5 {[%emt 0:03:05]} 12. Ba2 {[%emt 0:00:40]} Kh7 {[%emt 0:00:30]} 13. c3 {[%emt 0:04:58]} f5 {[%emt 0:13:24]} 14. exf5 {[%emt 0:00:33]} Bxf5 {[%emt 0:01:56]} 15. d4 {[%emt 0:03:48]} exd4 {[%emt 0:10:17]} 16. Nxd4 {[%emt 0:23:59]} Nxd4 {[%emt 0:03:34]} 17. cxd4 {[%emt 0:00:01]} Ne6 {[%emt 0:00:41]} 18. Be3 {[%emt 0:04:52]} Qh4 {[%emt 0:01:40]} 19. Rc1 {[%emt 0:05:29]} c6 {[%emt 0:05:58]} 20. Nb6 {[%emt 0:00:01]} Rae8 {[%emt 0:01:57]} 21. Bxe6 {[%emt 0:11:31]} Rxe6 {[%emt 0:05:48]} 22. d5 {[%emt 0:00:31]} Re4 {[%emt 0:01:57]} 23. Qf3 {[%emt 0:05:42]} Be6 {[%emt 0:10:39]} 24. Qe2 {[%emt 0:05:21]} Bxh3 {[%emt 0:03:25]} 25. Rc4 {[%emt 0:06:00]} cxd5 {[%emt 0:02:39]} 26. Rxe4 {[%emt 0:00:10]} dxe4 {[%emt 0:00:05]} 27. Rc1 {[%emt 0:01:06]} Bg4 {[%emt 0:01:43]} 28. Qd2 {[%emt 0:00:08]} Be5 {[%emt 0:02:50]} 29. g3 {[%emt 0:00:02]} Qh3 {[%emt 0:01:00]} 30. Rc7+ {[%emt 0:00:16]} Kh8 {[%emt 0:00:20]} 31. Qxd6 {[%emt 0:01:34]} Bxd6 {[%emt 0:00:58]} 32. Bd4+ {[%emt 0:00:00]} Rf6 {[%emt 0:00:11]} 33. Bxf6+ {[%emt 0:00:05]} Kg8 {[%emt 0:00:02]} 34. Rg7+ {[%emt 0:00:08]} Kf8 {[%emt 0:00:14]} 35. Bd4 {[%emt 0:01:26]} Bxg3 {[%emt 0:01:01]} 0-1

[Event "Israel National League 2024"]
[Site "Israel"]
[Date "2024.01.12"]
[Round "2.27"]
[White "Manor, Ilan"]
[Black "Gorodetzky, Matan"]
[Result "0-1"]
[ECO "D30"]
[WhiteElo "2469"]
[BlackElo "2325"]
[Annotator "TA"]
[PlyCount "86"]
[EventDate "2024.01.07"]
[EventType "team-tourn"]
[EventCountry "ISR"]
[SourceTitle "playchess.com"]
[Source "ChessBase"]
[SourceQuality "1"]
[TimeControl "40/5400+30:1800+30"]

{[%evp 16,86,34,34,28,23,22,10,39,29,58,29,56,54,80,79,69,59,43,40,45,0,15,27,48,42,54,63,41,10,14,-19,37,0,12,0,0,0,0,0,0,0,27,0,0,0,0,0,0,0,0,-34,-50,-162,-162,-168,-162,-589,-589,-722,-710,-766,-766,-1481,-1416,-1223,-1481,-3159,-1455,-1529,-1392,-639,-349]} 1. d4 {[%emt 0:00:04]} d5 {[%emt 0:00:11]} 2. c4 {[%emt 0:00:05]} e6 {[%emt 0:00:04]} 3. Nf3 {[%emt 0:00:06]} Nf6 {[%emt 0:00:20]} 4. g3 {[%emt 0:00:10]} c5 {[%emt 0:00:06]} 5. cxd5 {[%emt 0:07:45]} exd5 {[%emt 0:03:08]} 6. Bg2 {[%emt 0:00:20]} Nc6 {[%emt 0:00:07]} 7. O-O {[%emt 0:00:10]} Be7 {[%emt 0:00:05]} 8. dxc5 {[%emt 0:00:30]} Bxc5 {[%emt 0:00:07]} 9. a3 {[%emt 0:00:17]} Ne4 {[%emt 0:00:22] D30: Queen's Gambit Declined: Systems without Nc3.} 10. b4 {[%emt 0:17:39]} Be7 {[%emt 0:00:33]} 11. Nfd2 {[%emt 0:07:34]} Bf6 {[%emt 0:04:58] The position is equal.} 12. Ra2 {[%emt 0:00:19]} Bf5 {[%emt 0:06:55] [#]} 13. b5 $146 {[%emt 0:04:36] [#] Nxe4 would be deadly.} ({Predecessor:} 13. Bb2 O-O 14. e3 Bxb2 15. Rxb2 Qf6 16. Rb3 Rfd8 17. Qc1 Rac8 18. Qb2 Ne5 19. Qd4 {0-1 Paravyan,D (2612)-Mamedov,R (2636) Titled Tuesday intern op 04th Jul Late blitz 2023 (8)}) 13... Ne7 {[%emt 0:23:29]} 14. Nxe4 {[%emt 0:02:21]} Bxe4 {[%emt 0:03:39]} 15. Bxe4 {[%emt 0:41:39]} dxe4 {[%emt 0:00:03]} 16. Qxd8+ {[%emt 0:02:47]} Rxd8 {[%emt 0:00:11][%cal Ba8d8,Bd8d4,Bd4c4][%mdl 32]} 17. Nd2 {[%emt 0:00:12][%cal Bb1d2,Bd2b3,Bb3a5][%mdl 32]} Rd4 {[%emt 0:11:04]} 18. a4 {[%emt 0:02:16]} O-O {[%emt 0:01:50]} 19. Nb3 {[%emt 0:00:47]} Rc4 {[%emt 0:03:29]} 20. Na5 {[%emt 0:01:49][%csl LRb7,LRc4]} Rc7 {[%emt 0:01:45]} 21. Bf4 {[%emt 0:00:39]} Rd7 {[%emt 0:00:02]} 22. Rc1 {[%emt 0:00:30]} Nd5 {[%emt 0:04:17]} 23. Rc4 {[%emt 0:00:48]} Re8 {[%emt 0:05:38]} ({Black should try} 23... Bc3 $11 24. Bd2 Bxa5 25. Bxa5 f5) 24. Rac2 {[%emt 0:01:54]} g5 {[%emt 0:03:05]} 25. Rc8 {[%emt 0:01:07]} Rxc8 {[%emt 0:02:37]} 26. Rxc8+ {[%emt 0:00:02]} Kg7 {[%emt 0:00:07]} 27. Be3 {[%emt 0:01:47]} Nxe3 {[%emt 0:15:43]} 28. fxe3 $11 {[%emt 0:00:03][%mdl 4096] Endgame KRB-KRN} Be5 {[%emt 0:00:31]} 29. Re8 {[%emt 0:01:08]} Bc7 {[%emt 0:04:24]} 30. Nc4 {[%emt 0:06:06]} f5 {[%emt 0:00:16]} 31. a5 {[%emt 0:00:00] aiming for Ra8.} Bd8 {[%emt 0:01:14]} 32. Re6 {[%emt 0:00:00]} Rd5 {[%emt 0:02:34]} 33. b6 {[%emt 0:00:00]} axb6 {[%emt 0:00:02]} 34. axb6 {[%emt 0:00:00]} (34. Nxb6 $15 Kf7 35. Rh6 Rd1+ 36. Kg2) 34... Kf7 $19 {[%emt 0:00:32]} 35. Rh6 {[%emt 0:00:00] [#]} Bf6 $1 {[%emt 0:01:11]} 36. Rxh7+ {[%emt 0:02:11]} (36. h4 {was the crucial defense.} Kg7 37. hxg5 Bxg5 38. Rd6 Rxd6 39. Nxd6) 36... Bg7 {[%emt 0:00:05] Black is clearly winning.} 37. Rh3 {[%emt 0:00:43][%cal Og3g4]} g4 {[%emt 0:00:35]} 38. Rh4 {[%emt 0:00:25]} Kg6 {[%emt 0:00:44]} 39. h3 {[%emt 0:00:32]} Bf6 {[%emt 0:00:06]} 40. hxg4 {[%emt 0:00:06]} Bxh4 {[%emt 0:00:05]} 41. gxf5+ {[%emt 0:30:08]} Kxf5 {[%emt 0:30:20]} (41... Kg5 $142 42. gxh4+ Kxh4) 42. gxh4 {[%emt 0:00:00]} Kg4 {[%emt 0:00:00][%cal Og4g3] ( -> ...Kg3!)} 43. Kf2 {[%emt 0:00:00]} Kxh4 {[%emt 0:00:00] Weighted Error Value: White=0.55/Black=0.23 (precise)} 0-1

[Event "Israel National League 2024"]
[Site "Israel"]
[Date "2024.01.12"]
[Round "2.28"]
[White "Gladyszev, Oleg"]
[Black "Zifroni, Dov"]
[Result "1/2-1/2"]
[ECO "D43"]
[WhiteElo "2410"]
[BlackElo "2462"]
[Annotator "RC"]
[PlyCount "59"]
[EventDate "2024.01.07"]
[EventType "team-tourn"]
[EventCountry "ISR"]
[SourceTitle "playchess.com"]
[Source "ChessBase"]
[SourceQuality "1"]
[TimeControl "40/5400+30:1800+30"]

1. d4 {[%emt 0:00:06]} d5 {[%emt 0:00:48]} 2. c4 {[%emt 0:00:05]} c6 {[%emt 0:00:52]} 3. Nf3 {[%emt 0:00:09]} Nf6 {[%emt 0:00:05]} 4. Nc3 {[%emt 0:00:07]} e6 {[%emt 0:00:05]} 5. Bg5 {[%emt 0:00:15]} h6 {[%emt 0:02:21]} 6. Bxf6 {[%emt 0:01:23]} Qxf6 {[%emt 0:00:01]} 7. e3 {[%emt 0:00:15]} Nd7 {[%emt 0:00:18]} 8. Bd3 {[%emt 0:01:41]} dxc4 {[%emt 0:07:00]} 9. Bxc4 {[%emt 0:00:20]} g6 {[%emt 0:00:04]} 10. O-O {[%emt 0:02:42]} Bg7 {[%emt 0:00:04]} 11. e4 {[%emt 0:01:52]} e5 {[%emt 0:01:49]} 12. d5 {[%emt 0:01:14]} O-O {[%emt 0:04:30]} 13. dxc6 {[%emt 0:06:52]} bxc6 {[%emt 0:01:12]} 14. Na4 {[%emt 0:04:23]} Nb6 {[%emt 0:23:32]} 15. Be2 {[%emt 0:18:35]} Qe7 {[%emt 0:00:57]} 16. Qc2 {[%emt 0:09:33]} Nxa4 {[%emt 0:08:28]} 17. Qxa4 {[%emt 0:00:36]} Rb8 {[%emt 0:00:02]} 18. Qc2 {[%emt 0:05:49]} Qb4 {[%emt 0:11:00]} 19. b3 {[%emt 0:02:38]} a5 {[%emt 0:02:05]} 20. Bc4 {[%emt 0:09:01]} Kh7 {[%emt 0:03:22]} 21. Ne1 {[%emt 0:04:14]} f5 {[%emt 0:03:09]} 22. Nd3 {[%emt 0:00:17]} Qb6 {[%emt 0:01:19]} 23. Nc5 {[%emt 0:01:21]} fxe4 {[%emt 0:07:22]} 24. Rae1 {[%emt 0:08:38]} Bf5 {[%emt 0:02:03]} 25. Be6 {[%emt 0:04:35]} Rfd8 {[%emt 0:10:43]} 26. g4 {[%emt 0:01:14]} Bxe6 {[%emt 0:00:10]} 27. Nxe6 {[%emt 0:00:03]} Rd6 {[%emt 0:04:51]} 28. Nxg7 {[%emt 0:00:22]} Kxg7 {[%emt 0:00:06]} 29. Qxe4 {[%emt 0:01:26]} Rd5 {[%emt 0:01:34]} 30. Rc1 {[%emt 0:05:28]} 1/2-1/2

[Event "Israel National League 2024"]
[Site "Israel"]
[Date "2024.01.12"]
[Round "2.29"]
[White "Soffer, Ram"]
[Black "Stolyarsky, Yegor"]
[Result "1-0"]
[ECO "E01"]
[WhiteElo "2431"]
[BlackElo "2111"]
[Annotator "RC"]
[PlyCount "91"]
[EventDate "2024.01.07"]
[EventType "team-tourn"]
[EventCountry "ISR"]
[SourceTitle "playchess.com"]
[Source "ChessBase"]
[SourceQuality "1"]
[TimeControl "40/5400+30:1800+30"]

1. c4 {[%emt 0:00:04]} e6 {[%emt 0:08:34]} 2. g3 {[%emt 0:00:17]} d5 {[%emt 0:01:37]} 3. Bg2 {[%emt 0:00:06]} Nf6 {[%emt 0:00:58]} 4. Nf3 {[%emt 0:00:16]} Bd6 {[%emt 0:02:59]} 5. d4 {[%emt 0:03:41]} O-O {[%emt 0:01:29]} 6. O-O {[%emt 0:01:23]} c6 {[%emt 0:03:40]} 7. Nbd2 {[%emt 0:02:33]} Nbd7 {[%emt 0:00:42]} 8. Qc2 {[%emt 0:00:43]} Re8 {[%emt 0:10:00]} 9. e4 {[%emt 0:04:04]} Nxe4 {[%emt 0:03:40]} 10. Nxe4 {[%emt 0:01:12]} dxe4 {[%emt 0:00:08]} 11. Qxe4 {[%emt 0:00:54]} e5 {[%emt 0:04:38]} 12. Bg5 {[%emt 0:02:00]} f6 {[%emt 0:06:30]} 13. Bd2 {[%emt 0:03:30]} exd4 {[%emt 0:03:38]} 14. Qxd4 {[%emt 0:01:32]} Ne5 {[%emt 0:04:10]} 15. Bc3 {[%emt 0:02:50]} Qc7 {[%emt 0:25:31]} 16. c5 {[%emt 0:11:02]} Nxf3+ {[%emt 0:00:51]} 17. Bxf3 {[%emt 0:00:01]} Be5 {[%emt 0:00:43]} 18. Qb4 {[%emt 0:00:18]} Bxc3 {[%emt 0:05:14]} 19. Qxc3 {[%emt 0:01:19]} Be6 {[%emt 0:01:31]} 20. Rfe1 {[%emt 0:02:21]} Qf7 {[%emt 0:03:16]} 21. a3 {[%emt 0:06:05]} Bd5 {[%emt 0:03:21]} 22. b4 {[%emt 0:01:46]} Bxf3 {[%emt 0:02:27]} 23. Qxf3 {[%emt 0:02:53]} Rad8 {[%emt 0:00:37]} 24. h4 {[%emt 0:02:58]} h6 {[%emt 0:01:33]} 25. Rad1 {[%emt 0:00:40]} Rxe1+ {[%emt 0:00:08]} 26. Rxe1 {[%emt 0:00:01]} Rd5 {[%emt 0:00:52]} 27. Qf4 {[%emt 0:02:35]} Rd8 {[%emt 0:02:34]} 28. Kg2 {[%emt 0:04:31]} a6 {[%emt 0:00:09]} 29. Qf3 {[%emt 0:01:46]} Rd7 {[%emt 0:00:52]} 30. Re3 {[%emt 0:05:07]} g5 {[%emt 0:00:41]} 31. Qe2 {[%emt 0:02:46]} Kg7 {[%emt 0:00:05]} 32. Re6 {[%emt 0:03:48]} Rc7 {[%emt 0:02:17]} 33. Qe4 {[%emt 0:04:53]} Rd7 {[%emt 0:00:08]} 34. Re8 {[%emt 0:02:45]} Qd5 {[%emt 0:01:08]} 35. Qxd5 {[%emt 0:00:21]} cxd5 {[%emt 0:00:08]} 36. Kf3 {[%emt 0:00:39]} Kf7 {[%emt 0:00:51]} 37. Rh8 {[%emt 0:01:12]} Kg7 {[%emt 0:00:04]} 38. Rb8 {[%emt 0:00:18]} Kg6 {[%emt 0:00:35]} 39. hxg5 {[%emt 0:02:23]} hxg5 {[%emt 0:00:48]} 40. Ke3 {[%emt 0:02:10]} Kf5 {[%emt 0:00:06]} 41. Kd4 {[%emt 0:31:34]} Ke6 {[%emt 0:05:21]} 42. Re8+ {[%emt 0:00:00]} Kf5 {[%emt 0:00:28]} 43. a4 {[%emt 0:00:00]} Kg4 {[%emt 0:02:50]} 44. Rf8 {[%emt 0:00:00]} f5 {[%emt 0:00:54]} 45. b5 {[%emt 0:00:00]} Re7 {[%emt 0:00:35]} 46. c6 {[%emt 0:00:00]} 1-0

[Event "Israel National League 2024"]
[Site "Israel"]
[Date "2024.01.12"]
[Round "2.30"]
[White "Katkov, Michelle"]
[Black "Krayz, Alexander"]
[Result "1-0"]
[ECO "C06"]
[WhiteElo "2106"]
[BlackElo "2327"]
[Annotator "RC"]
[PlyCount "125"]
[EventDate "2024.01.07"]
[EventType "team-tourn"]
[EventCountry "ISR"]
[SourceTitle "playchess.com"]
[Source "ChessBase"]
[SourceQuality "1"]
[TimeControl "40/5400+30:1800+30"]

1. e4 {[%emt 0:00:20]} e6 {[%emt 0:00:28]} 2. d4 {[%emt 0:00:05]} d5 {[%emt 0:00:06]} 3. Nd2 {[%emt 0:00:10]} Nf6 {[%emt 0:00:20]} 4. e5 {[%emt 0:00:09]} Nfd7 {[%emt 0:00:07]} 5. Bd3 {[%emt 0:00:33]} c5 {[%emt 0:00:23]} 6. c3 {[%emt 0:00:09]} Nc6 {[%emt 0:00:06]} 7. Ne2 {[%emt 0:00:40]} cxd4 {[%emt 0:00:10]} 8. cxd4 {[%emt 0:00:06]} f6 {[%emt 0:00:07]} 9. exf6 {[%emt 0:00:20]} Nxf6 {[%emt 0:00:07]} 10. Nf3 {[%emt 0:01:50]} Qc7 {[%emt 0:00:31]} 11. O-O {[%emt 0:00:23]} Bd6 {[%emt 0:00:09]} 12. Bd2 {[%emt 0:00:55]} O-O {[%emt 0:01:06]} 13. Rc1 {[%emt 0:00:22]} Bd7 {[%emt 0:00:14]} 14. Ng3 {[%emt 0:01:04]} Rae8 {[%emt 0:13:03]} 15. Re1 {[%emt 0:00:20]} Qb8 {[%emt 0:00:54]} 16. Bc3 {[%emt 0:00:33]} Bf4 {[%emt 0:08:25]} 17. Rc2 {[%emt 0:00:43]} Ng4 {[%emt 0:02:35]} 18. Rce2 {[%emt 0:17:20]} g6 {[%emt 0:00:58]} 19. a4 {[%emt 0:04:09]} a6 {[%emt 0:02:00]} 20. Qb1 {[%emt 0:09:05]} Re7 {[%emt 0:11:20]} 21. a5 {[%emt 0:09:58]} Ref7 {[%emt 0:06:52]} 22. b4 {[%emt 0:06:56]} Qc7 {[%emt 0:11:32]} 23. Qb3 {[%emt 0:19:55]} Bd6 {[%emt 0:25:20]} 24. Qb2 {[%emt 0:11:11]} Rxf3 {[%emt 0:03:46]} 25. gxf3 {[%emt 0:00:07]} Rxf3 {[%emt 0:00:09]} 26. Qc2 {[%emt 0:04:10]} Nxb4 {[%emt 0:05:22]} 27. Bxb4 {[%emt 0:00:46]} Qxc2 {[%emt 0:00:06]} 28. Bxc2 {[%emt 0:01:11]} Bxb4 {[%emt 0:00:19]} 29. Rb1 {[%emt 0:00:20]} Bxa5 {[%emt 0:02:13]} 30. Rxb7 {[%emt 0:01:52]} Rf7 {[%emt 0:00:52]} 31. Bd3 {[%emt 0:01:40]} Bc3 {[%emt 0:00:25]} 32. Kg2 {[%emt 0:05:30]} Bxd4 {[%emt 0:01:26]} 33. Bxa6 {[%emt 0:00:50]} e5 {[%emt 0:03:17]} 34. Bb5 {[%emt 0:01:55]} Be6 {[%emt 0:00:13]} 35. Rxf7 {[%emt 0:00:37]} Kxf7 {[%emt 0:00:05]} 36. Rc2 {[%emt 0:00:35]} Kf6 {[%emt 0:01:00]} 37. Bc6 {[%emt 0:01:24]} h5 {[%emt 0:00:37]} 38. h4 {[%emt 0:00:38]} Nh6 {[%emt 0:00:42]} 39. Bb7 {[%emt 0:00:20]} Nf7 {[%emt 0:00:56]} 40. Bc8 {[%emt 0:00:43]} Nd8 {[%emt 0:01:09]} 41. Ne2 {[%emt 0:03:11]} Bb6 {[%emt 0:03:44]} 42. Bxe6 {[%emt 0:08:40]} Kxe6 {[%emt 0:00:05]} 43. Ra2 {[%emt 0:02:36]} Bc5 {[%emt 0:08:32]} 44. Ra8 {[%emt 0:01:05]} Be7 {[%emt 0:00:27]} 45. Ra6+ {[%emt 0:01:19]} Bd6 {[%emt 0:00:44]} 46. Nc3 {[%emt 0:01:28]} Nf7 {[%emt 0:01:21]} 47. Nb5 {[%emt 0:01:13]} e4 {[%emt 0:06:39]} 48. f3 {[%emt 0:03:31]} exf3+ {[%emt 0:01:57]} 49. Kxf3 {[%emt 0:00:12]} Ke5 {[%emt 0:00:09]} 50. Ra7 {[%emt 0:01:05]} Nh6 {[%emt 0:06:30]} 51. Nxd6 {[%emt 0:00:40]} Kxd6 {[%emt 0:00:04]} 52. Ra6+ {[%emt 0:00:40]} Ke5 {[%emt 0:00:08]} 53. Rxg6 {[%emt 0:11:26]} Nf7 {[%emt 0:00:10]} 54. Rg8 {[%emt 0:00:00]} Ke6 {[%emt 0:02:56]} 55. Kf4 {[%emt 0:00:00]} Kf6 {[%emt 0:00:05]} 56. Ra8 {[%emt 0:00:00]} Ke6 {[%emt 0:00:48]} 57. Ra7 {[%emt 0:00:00]} d4 {[%emt 0:02:03]} 58. Ra4 {[%emt 0:01:18]} d3 {[%emt 0:00:10]} 59. Ra3 {[%emt 0:00:41]} Ne5 {[%emt 0:03:17]} 60. Ra6+ {[%emt 0:00:22]} Kd5 {[%emt 0:00:05]} 61. Ra5+ {[%emt 0:00:24]} Kd4 {[%emt 0:00:03]} 62. Rxe5 {[%emt 0:00:32]} d2 {[%emt 0:00:03]} 63. Re8 {[%emt 0:00:13]} 1-0

[Event "Israel National League 2024"]
[Site "Israel"]
[Date "2024.01.12"]
[Round "2.31"]
[White "Eljanov, Pavel"]
[Black "Boruchovsky, Avital"]
[Result "1-0"]
[ECO "E61"]
[WhiteElo "2704"]
[BlackElo "2528"]
[Annotator "TA"]
[PlyCount "79"]
[EventDate "2024.01.07"]
[EventType "team-tourn"]
[EventCountry "ISR"]
[SourceTitle "playchess.com"]
[Source "ChessBase"]
[SourceQuality "1"]
[TimeControl "40/5400+30:1800+30"]

{[%evp 17,79,0,8,12,16,10,10,13,30,11,50,38,42,38,40,26,54,46,68,42,83,48,106,108,108,76,111,111,124,93,166,139,390,366,334,139,155,102,108,110,106,95,102,118,258,247,262,253,238,253,377,372,354,377,388,389,501,488,493,512,2845,2276,5837,4901]} 1. d4 {[%emt 0:00:09]} Nf6 {[%emt 0:00:16]} 2. c4 {[%emt 0:00:05]} g6 {[%emt 0:00:10]} 3. Nf3 {[%emt 0:00:12]} Bg7 {[%emt 0:00:12]} 4. e3 {[%emt 0:00:17]} O-O {[%emt 0:01:58]} 5. Be2 {[%emt 0:00:04]} c5 {[%emt 0:10:02]} 6. d5 {[%emt 0:00:49]} d6 {[%emt 0:00:18]} 7. Nc3 {[%emt 0:00:37]} e6 {[%emt 0:01:23]} 8. O-O {[%emt 0:00:29]} exd5 {[%emt 0:01:57]} 9. cxd5 {[%emt 0:00:08]} Bg4 {[%emt 0:00:04]} 10. h3 {[%emt 0:00:32] E61: King's Indian: Early deviations for White, including Smyslov System.} Bxf3 {[%emt 0:00:08]} 11. Bxf3 {[%emt 0:00:05]} a6 {[%emt 0:00:38]} 12. a4 {[%emt 0:00:23] The position is equal.} Nbd7 {[%emt 0:03:57]} 13. Qc2 {[%emt 0:02:16]} Re8 {[%emt 0:05:34]} 14. Bd2 {[%emt 0:09:13]} c4 {[%emt 0:05:32]} 15. Be2 {[%emt 0:00:32]} Rc8 {[%emt 0:01:12]} 16. Rfd1 {[%emt 0:11:22]} Qe7 {[%emt 0:06:02]} 17. a5 {[%emt 0:07:45]} Rc5 {[%emt 0:10:25] [#]} 18. Ra4 $146 {[%emt 0:13:24]} ({Predecessor:} 18. Be1 Qd8 19. Qa4 Ne4 20. Qb4 Nxc3 21. Bxc3 Bxc3 22. bxc3 Qc7 23. Rd4 Rc8 24. e4 {0-1 Hoffmeyer,F (2337)-Maiwald,J (2443) Bundesliga 1819 2018 (11.8)}) 18... Qd8 {[%emt 0:07:18]} 19. Rda1 {[%emt 0:06:21]} (19. Rxc4 Rxc4 20. Bxc4 Qxa5 $11) (19. Bxc4 Rxa5 20. Rxa5 Qxa5 $11) 19... Qc8 {[%emt 0:06:20]} (19... Nxd5 $14 20. Nxd5 (20. Bxc4 Nxc3 21. Bxc3 Bxc3 $17) (20. Rxc4 Ne7 $14) 20... Rxd5) 20. e4 $16 {[%emt 0:00:53]} Rc7 {[%emt 0:01:55]} 21. Be3 {[%emt 0:02:46]} h5 {[%emt 0:05:09]} 22. Rb4 {[%emt 0:15:17]} Kh7 {[%emt 0:02:53]} 23. Bd4 {[%emt 0:09:13] White is more active.} Nc5 {[%emt 0:06:02]} (23... Bh6 $16) 24. Rxc4 $18 {[%emt 0:03:36]} ({Stronger than} 24. Bxc4 Nfxe4 25. Bxg7 Kxg7 $11) 24... Nfd7 $2 {[%emt 0:01:18][%mdl 8192]} (24... Ncd7 $16) 25. Bxg7 {[%emt 0:00:35]} Kxg7 {[%emt 0:00:04]} 26. Qd1 {[%emt 0:04:21]} ({Not} 26. b4 Ne5 $14) (26. Na4 $18) 26... Nf6 {[%emt 0:00:52]} 27. Bf3 {[%emt 0:03:23]} (27. f3 $142) 27... Ncd7 $16 {[%emt 0:01:59]} 28. Rb4 {[%emt 0:00:29]} Rc4 {[%emt 0:02:14]} 29. Qb3 {[%emt 0:01:31]} Rxb4 {[%emt 0:00:39]} 30. Qxb4 {[%emt 0:00:03]} Qc5 {[%emt 0:01:52]} (30... Nc5 $16 {is a better defense.}) 31. Qxb7 $18 {[%emt 0:01:41]} Rb8 {[%emt 0:00:05]} 32. Qxa6 {[%emt 0:00:19]} Rxb2 {[%emt 0:00:04]} 33. Nd1 {[%emt 0:00:12]} Rd2 {[%emt 0:01:43]} (33... Rb3 $142 34. Qe2 Ra3 35. Rxa3 Qxa3) 34. Qc6 {[%emt 0:01:37]} Qd4 {[%emt 0:02:06] [#]} 35. Qa4 {[%emt 0:00:25]} Qe5 {[%emt 0:01:47][%cal Of6e4]} 36. a6 {[%emt 0:02:09]} Nxe4 {[%emt 0:01:42]} 37. Bxe4 {[%emt 0:01:47] White is clearly winning.} Nb6 {[%emt 0:02:23]} 38. Qb4 {[%emt 0:01:55]} Nc4 {[%emt 0:01:25] [#]} (38... Qxa1 $142 39. Qxd2 Qxa6 40. Qc3+ Kg8) 39. Qxc4 $1 {[%emt 0:00:10] Strongly threatening a7.} Qxa1 {[%emt 0:00:06]} (39... Rd4 40. Qc1) 40. Qc3+ {[%emt 0:00:07] Weighted Error Value: White=0.14 (very precise) /Black=0.42} 1-0